[Event "45th FIDE Womens Olympiad 2024"]
[Site "Budapest"]
[Date "2024.09.19"]
[Round "8.13"]
[White "Dzagnidze, Nana"]
[Black "Stefanova, Antoaneta"]
[Result "1/2-1/2"]
[ECO "D30"]
[WhiteElo "2508"]
[BlackElo "2416"]
[Annotator "RC"]
[PlyCount "114"]
[EventDate "2024.09.05"]
[EventType "team-tourn"]
[EventCountry "HUN"]
[SourceTitle "playchess.com"]
[Source "ChessBase"]
[SourceQuality "1"]
[WhiteTeam "Georgia"]
[BlackTeam "Bulgaria"]
[WhiteTeamCountry "GEO"]
[BlackTeamCountry "BUL"]
[TimeControl "40/5400+30:1800+30"]

1. d4 {[%emt 0:00:05]} d5 {[%emt 0:00:06]} 2. c4 {[%emt 0:00:09]} c6 {[%emt 0:00:18]} 3. Nf3 {[%emt 0:00:14]} e6 {[%emt 0:04:53]} 4. Qc2 {[%emt 0:03:38]} dxc4 {[%emt 0:01:39]} 5. Qxc4 {[%emt 0:01:02]} Nf6 {[%emt 0:00:28]} 6. g3 {[%emt 0:03:05]} b5 {[%emt 0:05:12]} 7. Qb3 {[%emt 0:20:23]} a6 {[%emt 0:06:47]} 8. Bg2 {[%emt 0:02:09]} c5 {[%emt 0:02:34]} 9. dxc5 {[%emt 0:02:12]} Bxc5 {[%emt 0:02:26]} 10. Nc3 {[%emt 0:14:33]} Bb7 {[%emt 0:11:51]} 11. O-O {[%emt 0:00:13]} Qb6 {[%emt 0:04:29]} 12. a4 {[%emt 0:01:38]} Ne4 {[%emt 0:23:26]} 13. axb5 {[%emt 0:02:53]} Bxf2+ {[%emt 0:09:15]} 14. Kh1 {[%emt 0:00:40]} Bc5 {[%emt 0:02:20]} 15. Nxe4 {[%emt 0:09:36]} Bxe4 {[%emt 0:00:07]} 16. Ne5 {[%emt 0:00:03]} Bxg2+ {[%emt 0:04:26]} 17. Kxg2 {[%emt 0:00:02]} Ra7 {[%emt 0:01:16]} 18. Nc4 {[%emt 0:02:44]} Qb7+ {[%emt 0:01:52]} 19. Rf3 {[%emt 0:05:45]} O-O {[%emt 0:01:37]} 20. Be3 {[%emt 0:11:03]} Qxb5 {[%emt 0:07:25]} 21. Qxb5 {[%emt 0:01:07]} axb5 {[%emt 0:00:04]} 22. Rxa7 {[%emt 0:00:18]} Bxa7 {[%emt 0:00:07]} 23. Bxa7 {[%emt 0:00:31]} bxc4 {[%emt 0:00:14]} 24. Rc3 {[%emt 0:00:11]} Nc6 {[%emt 0:01:21]} 25. Bc5 {[%emt 0:01:19]} Rb8 {[%emt 0:07:20]} 26. Rxc4 {[%emt 0:00:06]} f5 {[%emt 0:00:50]} 27. Bd6 {[%emt 0:02:14]} Na5 {[%emt 0:00:58]} 28. Rc5 {[%emt 0:01:30]} Rb6 {[%emt 0:00:21]} 29. Rc8+ {[%emt 0:04:34]} Kf7 {[%emt 0:00:02]} 30. Be5 {[%emt 0:00:06]} Nc6 {[%emt 0:01:03]} 31. Rc7+ {[%emt 0:00:25]} Ne7 {[%emt 0:00:08]} 32. Bd4 {[%emt 0:04:47]} Rc6 {[%emt 0:00:19]} 33. Rb7 {[%emt 0:00:08]} g5 {[%emt 0:00:57]} 34. b4 {[%emt 0:00:11]} Ke8 {[%emt 0:00:30]} 35. Bc5 {[%emt 0:03:13]} Nd5 {[%emt 0:00:06]} 36. Rxh7 {[%emt 0:00:05]} Nf6 {[%emt 0:00:13]} 37. Re7+ {[%emt 0:00:29]} Kd8 {[%emt 0:00:07]} 38. Ra7 {[%emt 0:02:06]} Ne4 {[%emt 0:00:43]} 39. h4 {[%emt 0:00:39]} Nxc5 {[%emt 0:00:49]} 40. bxc5 {[%emt 0:00:36]} Ke8 {[%emt 0:00:44]} 41. Ra5 {[%emt 0:18:15]} Kf7 {[%emt 0:12:21]} 42. Kf3 {[%emt 0:02:21]} Kf6 {[%emt 0:03:39]} 43. Rb5 {[%emt 0:07:32]} gxh4 {[%emt 0:07:57]} 44. gxh4 {[%emt 0:00:02]} Rc8 {[%emt 0:00:10]} 45. e4 {[%emt 0:03:14]} fxe4+ {[%emt 0:01:45]} 46. Ke3 {[%emt 0:01:46]} Ke5 {[%emt 0:01:22]} 47. h5 {[%emt 0:00:10]} Kd5 {[%emt 0:01:15]} 48. Ra5 {[%emt 0:00:05]} Rh8 {[%emt 0:01:27]} 49. c6+ {[%emt 0:01:18]} Kxc6 {[%emt 0:00:05]} 50. Kxe4 {[%emt 0:00:04]} Kd6 {[%emt 0:00:16]} 51. Kf4 {[%emt 0:00:14]} Ke7 {[%emt 0:00:37]} 52. Rg5 {[%emt 0:00:30]} Kf6 {[%emt 0:01:20]} 53. Rg6+ {[%emt 0:00:09]} Kf7 {[%emt 0:00:03]} 54. Kg5 {[%emt 0:00:44]} Rg8 {[%emt 0:00:16]} 55. Rxg8 {[%emt 0:00:08]} Kxg8 {[%emt 0:00:00]} 56. Kf6 {[%emt 0:00:09]} Kh7 {[%emt 0:00:05]} 57. Kxe6 {[%emt 0:00:06]} Kh6 {[%emt 0:00:02]} 1/2-1/2

[Event "45th FIDE Womens Olympiad 2024"]
[Site "Budapest"]
[Date "2024.09.19"]
[Round "8.13"]
[White "Mahi R. Shah"]
[Black "Ollet, Myra"]
[Result "1-0"]
[ECO "E16"]
[WhiteElo "1602"]
[BlackElo "1658"]
[PlyCount "127"]
[EventDate "2024.09.05"]
[EventType "team-tourn"]
[EventCountry "HUN"]
[WhiteTeam "Tanzania"]
[BlackTeam "Guam"]
[WhiteTeamCountry "TAN"]
[BlackTeamCountry "GMA"]
[TimeControl "40/5400+30:1800+30"]

1. d4 Nf6 2. c4 e6 3. Nf3 b6 4. g3 Bb7 5. Bg2 d5 6. cxd5 Bxd5 7. O-O Be7 8. Nc3 Bb7 9. Qc2 O-O 10. e4 c5 11. dxc5 Bxc5 12. Bg5 h6 13. e5 hxg5 14. exf6 Qxf6 15. Nxg5 Qxg5 16. Bxb7 Nd7 17. Bxa8 Rxa8 18. Ne4 Qe7 19. Nxc5 Nxc5 20. Rfd1 Qb7 21. Rd4 Nd7 22. Rad1 Nf8 23. Rd8 Rxd8 24. Rxd8 Qe7 25. Qc8 g6 26. Re8 Qb4 27. Qc3 Qd6 28. a3 Qd1+ 29. Kg2 Qd5+ 30. Qf3 Qd6 31. Ra8 a5 32. Rc8 e5 33. Qc6 Qd4 34. Qc3 Qd5+ 35. Qf3 e4 36. Qe3 Kg7 37. Qc3+ Kg8 38. Qc6 Qf5 39. Qc3 Qd5 40. Qe3 Kg7 41. f3 exf3+ 42. Qxf3 Qd2+ 43. Kg1 Qd4+ 44. Kf1 Qd7 45. Rc6 Ne6 46. Rxb6 Qc7 47. Qc3+ Qxc3 48. bxc3 Kf6 49. Ra6 a4 50. Rxa4 Nc5 51. Rf4+ Ke6 52. a4 f6 53. a5 g5 54. Rb4 Kd7 55. Rb6 Ne4 56. a6 Nxc3 57. a7 Nd5 58. Rb7+ Ke6 59. a8=Q Ne3+ 60. Ke2 Nd5 61. Qe8+ Kd6 62. Rd7+ Kc5 63. Rxd5+ Kxd5 64. g4 1-0

[Event "45th FIDE Womens Olympiad 2024"]
[Site "Budapest"]
[Date "2024.09.19"]
[Round "8.14"]
[White "Salimova, Nurgyul"]
[Black "Javakhishvili, Lela"]
[Result "1/2-1/2"]
[ECO "E08"]
[WhiteElo "2412"]
[BlackElo "2446"]
[Annotator "TA"]
[PlyCount "118"]
[EventDate "2024.09.05"]
[EventType "team-tourn"]
[EventCountry "HUN"]
[SourceTitle "playchess.com"]
[Source "ChessBase"]
[SourceQuality "1"]
[WhiteTeam "Bulgaria"]
[BlackTeam "Georgia"]
[WhiteTeamCountry "BUL"]
[BlackTeamCountry "GEO"]
[TimeControl "40/5400+30:1800+30"]

{[%evp 12,118,28,20,31,11,5,26,26,3,31,14,20,16,22,19,24,0,0,0,0,-34,26,19,27,30,31,31,38,27,42,23,35,14,22,18,24,14,21,18,31,8,0,0,0,0,0,0,8,2,14,3,18,0,0,0,0,1,0,0,0,0,0,0,0,-28,-28,-59,-46,-59,-38,-90,-91,-95,-91,-109,-101,-88,-72,-161,-164,-257,-237,-302,-284,-350,-197,-220,-164,-157,-159,-270,-162,-202,-245,-252,-252,-246,-247,-239,-205,-230,-211,-245,0,-230,0,-195,0]} 1. d4 {[%emt 0:00:05]} Nf6 {[%emt 0:00:09]} 2. Nf3 {[%emt 0:00:29]} d5 {[%emt 0:00:11]} 3. c4 {[%emt 0:00:40]} e6 {[%emt 0:00:09]} 4. g3 {[%emt 0:00:10]} Be7 {[%emt 0:00:19]} 5. Bg2 {[%emt 0:00:05]} O-O {[%emt 0:00:07]} 6. O-O {[%emt 0:00:08]} Nbd7 {[%emt 0:00:19]} 7. Qc2 {[%emt 0:03:27]} a5 {[%emt 0:00:21]} 8. Bg5 {[%emt 0:04:39]} h6 {[%emt 0:16:13]} 9. Bxf6 {[%emt 0:04:47]} Nxf6 {[%emt 0:00:37] White has an edge.} 10. Rc1 $1 {[%emt 0:02:19]} Bd7 {[%emt 0:04:41]} 11. Ne5 {[%emt 0:12:22]} c5 {[%emt 0:11:10]} 12. cxd5 {[%emt 0:09:02]} exd5 {[%emt 0:00:56]} 13. dxc5 {[%emt 0:04:28]} Rc8 {[%emt 0:00:22]} 14. Qd3 {[%emt 0:07:31][%cal Oe5d7]} Bxc5 {[%emt 0:02:24]} 15. Nc3 {[%emt 0:01:58]} Be6 {[%emt 0:03:03]} 16. Rd1 {[%emt 0:02:54][%cal Oe2e3]} Qd6 {[%emt 0:15:59]} (16... Qb6 $15 17. e3 Bd6 (17... Qxb2 $2 {perishes.} 18. Rab1 $18)) 17. Nf3 $11 {[%emt 0:02:18]} Rfd8 {[%emt 0:00:34]} 18. e3 {[%emt 0:06:44]} Qd7 {[%emt 0:03:02]} 19. Rac1 {[%emt 0:02:18]} Bb4 {[%emt 0:05:24]} 20. Ne2 {[%emt 0:11:50]} Bf5 {[%emt 0:07:12]} 21. Qb3 {[%emt 0:02:32]} Bc5 {[%emt 0:03:09]} 22. Nc3 {[%emt 0:03:55]} Bg4 {[%emt 0:07:02]} 23. Qb5 {[%emt 0:04:58]} Bb4 {[%emt 0:02:35]} 24. Qxd7 {[%emt 0:00:31]} Bxd7 {[%emt 0:00:33]} 25. Ne2 {[%emt 0:01:02][%cal Bc3e2,Be2f4,Bf4d3][%mdl 32]} Ba4 {[%emt 0:01:14]} 26. b3 {[%emt 0:01:11]} Bd7 {[%emt 0:01:03]} 27. Nf4 {[%emt 0:01:00]} g5 {[%emt 0:02:14]} 28. Nd3 {[%emt 0:03:23]} Ba3 {[%emt 0:02:01]} 29. Rxc8 {[%emt 0:00:14]} Bxc8 {[%emt 0:02:32]} 30. Nd4 {[%emt 0:01:24]} Ne4 {[%emt 0:01:05]} 31. Nb5 {[%emt 0:00:49]} Be7 {[%emt 0:00:38]} 32. Rc1 {[%emt 0:02:46]} Bd7 {[%emt 0:00:27]} 33. Nd4 {[%emt 0:02:49]} Rc8 {[%emt 0:00:54] Dodges Rc7} 34. Rxc8+ {[%emt 0:01:12]} Bxc8 {[%emt 0:00:01]} 35. Bxe4 {[%emt 0:00:31]} dxe4 {[%emt 0:00:03][%mdl 4096] Endgame. KBB-KNN} 36. Ne5 {[%emt 0:00:58]} Bc5 {[%emt 0:04:22]} 37. Nc4 {[%emt 0:00:22]} b6 {[%emt 0:00:18]} 38. Nd2 {[%emt 0:00:17]} f5 {[%emt 0:01:37]} 39. g4 {[%emt 0:00:24]} fxg4 {[%emt 0:00:54]} 40. Nxe4 {[%emt 0:00:45]} Be7 {[%emt 0:01:44]} 41. Nc3 {[%emt 0:03:12]} (41. Nc6 $15 Kf7 42. Nxe7 Kxe7 43. Nd2) 41... Kf7 $17 {[%emt 0:04:27]} 42. Na4 {[%emt 0:09:58]} Bd8 {[%emt 0:01:51]} 43. Nb2 {[%emt 0:00:46]} Bd7 {[%emt 0:03:36]} 44. Nc4 {[%emt 0:01:30]} Bc7 {[%emt 0:00:46] Prevents Ne5+} 45. e4 {[%emt 0:03:11] [#]} (45. a4 $17 {is a better defense.}) 45... b5 $1 $19 {[%emt 0:03:09]} 46. Ne3 {[%emt 0:07:02]} (46. Na3 {only move.}) 46... Be5 {[%emt 0:05:17]} 47. Ndf5 {[%emt 0:01:31]} h5 {[%emt 0:00:22]} 48. Nd5 {[%emt 0:01:51]} Be6 {[%emt 0:00:41]} (48... Ke6 $142 {Hoping for ...Be8.} 49. Nfe7 h4) 49. Nfe3 {[%emt 0:01:00]} Bd4 {[%emt 0:07:43]} 50. Nf5 {[%emt 0:02:30] [#]} Bc5 {[%emt 0:01:23]} 51. Nfe3 {[%emt 0:01:09]} (51. Kg2 $17) 51... a4 {[%emt 0:01:51]} 52. bxa4 {[%emt 0:01:35]} bxa4 {[%emt 0:00:05]} 53. Nc4 {[%emt 0:00:29]} a3 {[%emt 0:03:50]} 54. Kg2 {[%emt 0:00:32]} h4 {[%emt 0:00:55]} 55. Ne5+ {[%emt 0:00:10]} Kg7 {[%emt 0:00:31]} 56. Nc4 {[%emt 0:01:16]} Bd7 {[%emt 0:00:44]} 57. Ne5 {[%emt 0:01:03]} Be6 {[%emt 0:02:15] A strong pair of Bishops.} 58. Nc4 {[%emt 0:00:04]} Bd7 {[%emt 0:00:31]} 59. Ne5 $1 {[%emt 0:00:06]} Be6 $2 {[%emt 0:00:04] Weighted Error Value: White=0.15 (very precise) /Black=0.22 (precise) .  Missed win:     	---       	Black=1      Mistake:       	White=4     	Black=2      Inaccurate:     	White=3     	Black=2      OK:         	White=15    	Black=25     Best:        	White=4     	---        Strong:       	White=2     	---} (59... h3+ $19 60. Kg1 Bc8) 1/2-1/2

[Event "45th FIDE Womens Olympiad 2024"]
[Site "Budapest"]
[Date "2024.09.19"]
[Round "8.14"]
[White "Ramas, Carmina Jasmine"]
[Black "Anahi Rishit Shah"]
[Result "1-0"]
[ECO "D02"]
[WhiteElo "1712"]
[BlackElo "1513"]
[PlyCount "113"]
[EventDate "2024.09.05"]
[EventType "team-tourn"]
[EventCountry "HUN"]
[WhiteTeam "Guam"]
[BlackTeam "Tanzania"]
[WhiteTeamCountry "GMA"]
[BlackTeamCountry "TAN"]
[TimeControl "40/5400+30:1800+30"]

1. d4 Nf6 2. Bf4 e6 3. Nf3 Nc6 4. e3 d5 5. Nbd2 Bd6 6. Ne5 Bxe5 7. dxe5 Nd7 8. Nf3 f6 9. exf6 Nxf6 10. c3 O-O 11. Bd3 Re8 12. Ne5 Nxe5 13. Bxe5 Rf8 14. O-O Nd7 15. Qh5 g6 16. Bxg6 Qe7 17. Bc2 Nxe5 18. Qxe5 c6 19. f4 Qg7 20. Qh5 Bd7 21. Rf3 Qf7 22. Qe5 Qf6 23. Rg3+ Kh8 24. Rh3 Qxe5 25. Rxh7+ Kg8 26. fxe5 Rf7 27. Rxf7 Kxf7 28. Rf1+ Kg7 29. Rf3 a5 30. Kf2 a4 31. a3 b5 32. h4 Rc8 33. Rg3+ Kh8 34. h5 c5 35. Rg4 Rf8+ 36. Rf4 Rc8 37. g4 Rg8 38. Rf7 Rg7 39. Rxg7 Kxg7 40. g5 Be8 41. Bd1 c4 42. Kg3 b4 43. axb4 Kh7 44. Kh4 Kg7 45. Bg4 d4 46. exd4 Kh7 47. Bxe6 Kg7 48. d5 Kh7 49. d6 Kg7 50. d7 Bxd7 51. Bxd7 Kh7 52. e6 Kg7 53. e7 a3 54. h6+ Kh7 55. e8=Q a2 56. Qf7+ Kh8 57. Qg7# 1-0

[Event "45th FIDE Womens Olympiad 2024"]
[Site "Budapest"]
[Date "2024.09.19"]
[Round "8.15"]
[White "Batsiashvili, Nino"]
[Black "Radeva, Viktoria"]
[Result "1/2-1/2"]
[ECO "A46"]
[WhiteElo "2461"]
[BlackElo "2297"]
[Annotator "TA"]
[PlyCount "134"]
[EventDate "2024.09.05"]
[EventType "team-tourn"]
[EventCountry "HUN"]
[SourceTitle "playchess.com"]
[Source "ChessBase"]
[SourceQuality "1"]
[WhiteTeam "Georgia"]
[BlackTeam "Bulgaria"]
[WhiteTeamCountry "GEO"]
[BlackTeamCountry "BUL"]
[TimeControl "40/5400+30:1800+30"]

{[%evp 14,134,34,31,35,25,33,31,28,22,25,16,30,25,17,18,23,29,35,25,41,50,41,38,84,87,64,46,93,88,87,96,80,62,53,61,58,68,44,66,58,62,58,63,83,82,88,50,56,0,0,0,47,50,78,47,73,62,53,49,66,53,61,67,64,67,72,72,72,66,134,143,270,67,147,146,242,244,237,222,262,172,171,172,171,171,200,199,241,241,238,237,239,233,286,222,213,213,228,228,225,225,225,213,230,230,230,124,107,107,107,107,107,107,100,100,225,225,225,225,225,225,225]} 1. d4 {[%emt 0:00:02]} Nf6 {[%emt 0:00:09]} 2. Nf3 {[%emt 0:00:21]} e6 {[%emt 0:00:08]} 3. Bf4 {[%emt 0:00:06]} c5 {[%emt 0:00:23]} 4. e3 {[%emt 0:00:25]} cxd4 {[%emt 0:00:14]} 5. exd4 {[%emt 0:00:05]} b6 {[%emt 0:00:31]} 6. a4 {[%emt 0:00:13] A46: 1 d4 Nf6 2 Nf3 e6: Torre, London and Colle Systems.} Bb7 {[%emt 0:05:53]} 7. c3 {[%emt 0:00:55]} Be7 {[%emt 0:01:30]} 8. Bd3 {[%emt 0:01:03]} a6 {[%emt 0:05:14]} 9. O-O {[%emt 0:01:13]} O-O {[%emt 0:00:22]} 10. Na3 $146 {[%emt 0:00:25]} ({Predecessor:} 10. h3 d6 11. Nbd2 Re8 12. Qc2 Nbd7 13. Rfe1 Bf8 14. Ne4 Nxe4 15. Bxe4 Bxe4 16. Rxe4 {½-½ Nagel,B (2216)-Koehler,R (2240) Oberliga Ost-B 9900 1999 (7.4)}) 10... d6 {[%emt 0:01:34]} 11. Nc2 {[%emt 0:06:03]} Nbd7 {[%emt 0:02:55]} 12. Re1 {[%emt 0:01:06]} Re8 {[%emt 0:00:44]} 13. h3 {[%emt 0:00:18]} Bf8 {[%emt 0:01:21]} 14. Bh2 {[%emt 0:01:47]} h6 {[%emt 0:01:21]} 15. Nd2 {[%emt 0:14:22]} e5 {[%emt 0:05:44]} 16. Ne3 {[%emt 0:06:51]} (16. Bc4 {simplifies} exd4 17. Rxe8 Nxe8 18. Nxd4 d5 19. Bb3) 16... Qc7 {[%emt 0:08:41]} 17. Qb3 {[%emt 0:01:40]} Qc6 {[%emt 0:10:30]} 18. Qc4 {[%emt 0:08:58]} Nh5 {[%emt 0:23:14]} (18... h5 $14) 19. Qxc6 $16 {[%emt 0:03:19]} Bxc6 {[%emt 0:00:04]} 20. Nec4 {[%emt 0:05:11]} exd4 {[%emt 0:07:49]} (20... Rad8 $14) 21. Rxe8 $1 $16 {[%emt 0:00:24]} Rxe8 {[%emt 0:00:09]} 22. cxd4 {[%emt 0:00:13]} ({Don't play} 22. Nxd6 Bxd6 23. Bxd6 dxc3 24. bxc3 a5 $11) 22... d5 {[%emt 0:01:53]} 23. Ne5 {[%emt 0:16:43]} Nxe5 {[%emt 0:00:15]} 24. Bxe5 {[%emt 0:00:07]} g5 {[%emt 0:11:36]} 25. Bxa6 {[%emt 0:04:09]} Ra8 {[%emt 0:00:11]} 26. Be2 {[%emt 0:01:25]} Nf4 {[%emt 0:00:18]} 27. Bxf4 {[%emt 0:03:08]} gxf4 {[%emt 0:00:04]} 28. Bd1 {[%emt 0:02:47]} Bb4 {[%emt 0:05:16]} 29. Nf3 {[%emt 0:00:11]} f6 {[%emt 0:00:39]} 30. Bb3 {[%emt 0:00:13]} Ra5 $1 {[%emt 0:03:22]} 31. Kf1 {[%emt 0:12:00]} Bb5+ {[%emt 0:00:36]} 32. Kg1 {[%emt 0:00:27]} Bc6 $1 {[%emt 0:00:01]} 33. Bc2 {[%emt 0:01:11]} Ra8 {[%emt 0:02:06]} 34. b3 {[%emt 0:03:10]} b5 {[%emt 0:00:13]} 35. Rb1 {[%emt 0:00:48]} bxa4 {[%emt 0:00:43]} 36. bxa4 {[%emt 0:00:06]} Bxa4 {[%emt 0:01:41]} 37. Bf5 {[%emt 0:00:25]} Bc3 {[%emt 0:00:26]} 38. Be6+ {[%emt 0:00:17]} Kf8 {[%emt 0:00:20]} 39. Bxd5 {[%emt 0:00:50]} Rd8 {[%emt 0:00:14]} 40. Be6 {[%emt 0:01:02]} Be8 {[%emt 0:01:31]} 41. d5 {[%emt 0:30:38]} Bh5 {[%emt 0:06:25]} (41... Bg6 $14 42. Rb6 Be4) 42. Nh4 $16 {[%emt 0:00:00]} Be5 {[%emt 0:07:16]} (42... Ra8 $16 43. Kh2 Be5) 43. Rc1 $2 {[%emt 0:00:00]} (43. Rb7 $18) 43... Rb8 {[%emt 0:04:06]} (43... Be8 $14) 44. Nf5 $16 {[%emt 0:00:00]} f3 {[%emt 0:03:17] [#]} (44... Bg6 $16 45. Nxh6 Rd8) 45. g3 $1 $18 {[%emt 0:00:00]} ({Worse is} 45. Nxh6 Bf4 46. Ra1 Bxh6 $17) 45... Bg6 {[%emt 0:03:18]} 46. Nxh6 {[%emt 0:00:00]} Rb2 {[%emt 0:06:35]} 47. Nf5 {[%emt 0:00:00]} Bxf5 {[%emt 0:00:18]} 48. Bxf5 {[%emt 0:00:00]} Bd4 {[%emt 0:01:05]} 49. Rf1 {[%emt 0:00:00]} Ke7 {[%emt 0:00:57]} 50. Be4 {[%emt 0:00:53]} Rb3 {[%emt 0:00:27]} 51. Rd1 {[%emt 0:01:45]} Bc5 {[%emt 0:00:10]} 52. h4 {[%emt 0:01:29]} Kd6 {[%emt 0:01:11]} 53. h5 {[%emt 0:03:11]} Ke5 {[%emt 0:01:20]} 54. Re1 {[%emt 0:02:53]} Bb4 {[%emt 0:00:05] [#]} 55. Bc2+ $1 {[%emt 0:00:24]} (55. Bxf3+ $2 {loses.} Bxe1 56. Be2 Bd2 $19 (56... Kxd5 $2 57. h6 $19)) 55... Bxe1 {[%emt 0:00:03]} 56. Bxb3 {[%emt 0:00:02]} Bd2 {[%emt 0:00:12]} 57. Kh2 {[%emt 0:00:16]} f5 {[%emt 0:00:58]} 58. Kh3 {[%emt 0:00:36]} Be1 {[%emt 0:00:39]} 59. h6 {[%emt 0:00:44]} Kf6 {[%emt 0:00:10]} 60. g4 {[%emt 0:02:50]} ({White should try} 60. d6 $18 {White threatens h7 and mate.} Bxf2 61. h7) 60... fxg4+ {[%emt 0:00:35]} 61. Kxg4 {[%emt 0:00:26]} Bxf2 {[%emt 0:00:17]} 62. Kxf3 {[%emt 0:00:04]} Bc5 {[%emt 0:00:15]} 63. Bc2 {[%emt 0:00:23]} Bf8 {[%emt 0:00:11]} 64. h7 {[%emt 0:00:04]} Kg7 {[%emt 0:00:06]} (64... Bg7 $16 65. Ke4 Ke7) 65. Kf4 {[%emt 0:00:06]} Bd6+ {[%emt 0:00:09]} 66. Ke3 {[%emt 0:00:05]} Bc5+ {[%emt 0:00:10]} 67. Kd3 {[%emt 0:00:04]} Bd6 {[%emt 0:00:07]} 1/2-1/2

[Event "45th FIDE Womens Olympiad 2024"]
[Site "Budapest"]
[Date "2024.09.19"]
[Round "8.15"]
[White "Bertha Samson Mkude"]
[Black "Estur, Grace Co"]
[Result "1-0"]
[ECO "C50"]
[WhiteElo "1459"]
[BlackElo "1586"]
[PlyCount "85"]
[EventDate "2024.09.05"]
[EventType "team-tourn"]
[EventCountry "HUN"]
[WhiteTeam "Tanzania"]
[BlackTeam "Guam"]
[WhiteTeamCountry "TAN"]
[BlackTeamCountry "GMA"]
[TimeControl "40/5400+30:1800+30"]

1. e4 e5 2. Nf3 Nc6 3. Bc4 Nf6 4. Nc3 Bc5 5. O-O d6 6. h3 Ne7 7. d3 c6 8. Bg5 b5 9. Bb3 O-O 10. Bxf6 gxf6 11. Qd2 Be6 12. Nh2 Bxb3 13. axb3 Kg7 14. Ng4 Ng6 15. Ne2 d5 16. exd5 cxd5 17. Ng3 Nf4 18. Ra6 Bb6 19. Ne2 Qc7 20. Nxf4 exf4 21. g3 h5 22. Nh2 fxg3 23. Nf3 gxf2+ 24. Kg2 Rg8 25. d4 Kh7+ 26. Kxf2 Qg3+ 27. Ke2 Qxh3 28. Qd3+ Kh8 29. Raa1 Rae8+ 30. Kd2 Rg2+ 31. Kc3 Qc8+ 32. Kb4 Re6 33. Rh1 Qf8+ 34. Kxb5 Qe8+ 35. Kb4 a5+ 36. Ka3 Rg7 37. Rxh5+ Kg8 38. Rah1 Qe7+ 39. Ka2 Kf8 40. Rh8+ Rg8 41. Rxg8+ Kxg8 42. Qh7+ Kf8 43. Qh8# 1-0